[Event "November 21 Late 2023"]
[Site "https://www.chess.com"]
[Date "2023.11.21"]
[Round "4"]
[White "OPQRC"]
[Black "Bochnicka, Vladimir"]
[Result "1-0"]
[Board "92"]
[TimeControl "180+1"]
[BlackFideId "14943450"]
[WhiteElo "2628"]
[BlackElo "2170"]
[BlackTeam "SVK"]
[WhiteClock "0:00:32"]
[BlackClock "0:00:00"]

1. e4 {[%clk 0:02:58]}  c5 {[%clk 0:02:57]} 2. Nf3 {[%clk 0:02:49]}  Nc6 {[%clk 0:02:57]} 3. c3 {[%clk 0:02:48]}  Nf6 {[%clk 0:02:56]} 4. d3 {[%clk 0:02:46]}  e5 {[%clk 0:02:54]} 5. Be2 {[%clk 0:02:44]}  d6 {[%clk 0:02:54]} 6. O-O {[%clk 0:02:43]}  g6 {[%clk 0:02:53]} 7. Re1 {[%clk 0:02:43]}  Bg7 {[%clk 0:02:53]} 8. Bf1 {[%clk 0:02:42]}  O-O {[%clk 0:02:53]} 9. Nbd2 {[%clk 0:02:42]}  h6 {[%clk 0:02:47]} 10. Nc4 {[%clk 0:02:32]}  Be6 {[%clk 0:02:44]} 11. a4 {[%clk 0:02:28]}  a6 {[%clk 0:02:41]} 12. a5 {[%clk 0:02:21]}  Bxc4 {[%clk 0:02:38]} 13. dxc4 {[%clk 0:02:22]}  Nxa5 {[%clk 0:02:38]} 14. Nxe5 {[%clk 0:02:11]}  dxe5 {[%clk 0:02:19]} 15. Qxd8 {[%clk 0:02:11]}  Rfxd8 {[%clk 0:02:20]} 16. Rxa5 {[%clk 0:02:11]}  b6 {[%clk 0:02:18]} 17. Ra1 {[%clk 0:02:11]}  Ne8 {[%clk 0:01:57]} 18. b4 {[%clk 0:02:06]}  Bf8 {[%clk 0:01:47]} 19. Ra4 {[%clk 0:01:46]}  Kg7 {[%clk 0:01:28]} 20. Be3 {[%clk 0:01:39]}  Nc7 {[%clk 0:01:20]} 21. Rea1 {[%clk 0:01:29]}  Rab8 {[%clk 0:01:07]} 22. f3 {[%clk 0:01:21]}  Rd7 {[%clk 0:00:32]} 23. Kf2 {[%clk 0:01:20]}  f5 {[%clk 0:00:24]} 24. exf5 {[%clk 0:01:12]}  gxf5 {[%clk 0:00:24]} 25. g3 {[%clk 0:01:13]}  b5 {[%clk 0:00:24]} 26. cxb5 {[%clk 0:01:11]}  axb5 {[%clk 0:00:24]} 27. Ra7 {[%clk 0:01:11]}  cxb4 {[%clk 0:00:24]} 28. cxb4 {[%clk 0:01:04]}  Bxb4 {[%clk 0:00:21]} 29. Rc1 {[%clk 0:01:03]}  Bd6 {[%clk 0:00:18]} 30. Rc6 {[%clk 0:01:00]}  b4 {[%clk 0:00:09]} 31. Bc5 {[%clk 0:00:35]}  Bxc5+ {[%clk 0:00:04]} 32. Rxc5 {[%clk 0:00:35]}  b3 {[%clk 0:00:02]} 33. Rcxc7 {[%clk 0:00:32]}  b2 {[%clk 0:00:00]} 34. Rxd7+ {[%clk 0:00:32]} 1-0

[Event "November 21 Late 2023"]
[Site "https://www.chess.com"]
[Date "2023.11.21"]
[Round "4"]
[White "UK_23"]
[Black "Golubev, Mikhail"]
[Result "1-0"]
[Board "95"]
[TimeControl "180+1"]
[BlackFideId "14100983"]
[WhiteElo "2414"]
[BlackElo "2352"]
[BlackTeam "UKR"]
[WhiteClock "0:00:13"]
[BlackClock "0:00:00"]

1. e4 {[%clk 0:02:57]}  c5 {[%clk 0:03:00]} 2. Nf3 {[%clk 0:02:56]}  Nc6 {[%clk 0:03:00]} 3. Bb5 {[%clk 0:02:51]}  d6 {[%clk 0:02:59]} 4. Bxc6+ {[%clk 0:02:45]}  bxc6 {[%clk 0:02:59]} 5. e5 {[%clk 0:02:46]}  dxe5 {[%clk 0:02:41]} 6. d3 {[%clk 0:02:29]}  f6 {[%clk 0:02:37]} 7. O-O {[%clk 0:02:27]}  g6 {[%clk 0:01:42]} 8. b3 {[%clk 0:02:25]}  Nh6 {[%clk 0:01:36]} 9. Ba3 {[%clk 0:02:16]}  Bg7 {[%clk 0:01:10]} 10. Nc3 {[%clk 0:02:05]}  O-O {[%clk 0:01:07]} 11. Na4 {[%clk 0:02:05]}  f5 {[%clk 0:00:57]} 12. Rc1 {[%clk 0:01:29]}  e4 {[%clk 0:00:42]} 13. dxe4 {[%clk 0:01:24]}  Qxd1 {[%clk 0:00:26]} 14. Rfxd1 {[%clk 0:01:19]}  fxe4 {[%clk 0:00:26]} 15. Ng5 {[%clk 0:01:09]}  e3 {[%clk 0:00:15]} 16. fxe3 {[%clk 0:01:03]}  Nf5 {[%clk 0:00:12]} 17. Bxc5 {[%clk 0:01:00]}  Bh6 {[%clk 0:00:12]} 18. h4 {[%clk 0:00:42]}  Nxh4 {[%clk 0:00:11]} 19. Bxe7 {[%clk 0:00:42]}  Re8 {[%clk 0:00:10]} 20. Rd8 {[%clk 0:00:42]}  Rxd8 {[%clk 0:00:09]} 21. Bxd8 {[%clk 0:00:43]}  Bf5 {[%clk 0:00:08]} 22. Rd1 {[%clk 0:00:16]}  Bxc2 {[%clk 0:00:05]} 23. Rd2 {[%clk 0:00:16]}  Bf5 {[%clk 0:00:04]} 24. Nc5 {[%clk 0:00:15]}  a5 {[%clk 0:00:02]} 25. a4 {[%clk 0:00:15]}  Rb8 {[%clk 0:00:02]} 26. Kf2 {[%clk 0:00:13]}  Rc8 {[%clk 0:00:00]} 27. g3 {[%clk 0:00:13]} 1-0

[Event "November 21 Late 2023"]
[Site "https://www.chess.com"]
[Date "2023.11.21"]
[Round "4"]
[White "Koksal, Ege"]
[Black "Suspenser17"]
[Result "1-0"]
[Board "96"]
[TimeControl "180+1"]
[WhiteFideId "6317626"]
[WhiteElo "2230"]
[BlackElo "2402"]
[WhiteTeam "TUR"]
[WhiteClock "0:00:15"]
[BlackClock "0:00:00"]

1. c4 {[%clk 0:03:00]}  c6 {[%clk 0:02:59]} 2. Nc3 {[%clk 0:03:01]}  d5 {[%clk 0:02:59]} 3. d4 {[%clk 0:03:02]}  Nf6 {[%clk 0:02:59]} 4. Nf3 {[%clk 0:03:02]}  e6 {[%clk 0:03:00]} 5. e3 {[%clk 0:03:01]}  Nbd7 {[%clk 0:03:00]} 6. Bd3 {[%clk 0:03:01]}  dxc4 {[%clk 0:03:00]} 7. Bxc4 {[%clk 0:03:02]}  b5 {[%clk 0:03:00]} 8. Bd3 {[%clk 0:03:03]}  Bd6 {[%clk 0:03:01]} 9. O-O {[%clk 0:03:02]}  Bb7 {[%clk 0:02:58]} 10. a4 {[%clk 0:03:03]}  b4 {[%clk 0:02:58]} 11. Ne4 {[%clk 0:03:03]}  Nxe4 {[%clk 0:02:57]} 12. Bxe4 {[%clk 0:03:04]}  Nf6 {[%clk 0:02:56]} 13. Bd3 {[%clk 0:03:05]}  Qc7 {[%clk 0:02:55]} 14. e4 {[%clk 0:03:02]}  Be7 {[%clk 0:02:47]} 15. Bg5 {[%clk 0:02:53]}  O-O {[%clk 0:02:45]} 16. Rc1 {[%clk 0:02:52]}  h6 {[%clk 0:02:44]} 17. Bh4 {[%clk 0:02:51]}  Rfd8 {[%clk 0:02:40]} 18. Qe2 {[%clk 0:02:49]}  Qa5 {[%clk 0:02:30]} 19. e5 {[%clk 0:02:35]}  Nd5 {[%clk 0:02:28]} 20. Qe4 {[%clk 0:02:21]}  Bxh4 {[%clk 0:02:06]} 21. Qh7+ {[%clk 0:02:21]}  Kf8 {[%clk 0:02:06]} 22. Nxh4 {[%clk 0:02:22]}  Nf4 {[%clk 0:02:06]} 23. Rc5 {[%clk 0:01:44]}  Qc7 {[%clk 0:01:29]} 24. Nf3 {[%clk 0:00:54]}  Nxd3 {[%clk 0:01:20]} 25. Qxd3 {[%clk 0:00:55]}  Kg8 {[%clk 0:01:18]} 26. a5 {[%clk 0:00:52]}  Qc8 {[%clk 0:01:01]} 27. Rfc1 {[%clk 0:00:51]}  Rb8 {[%clk 0:00:54]} 28. Qd2 {[%clk 0:00:46]}  Qd7 {[%clk 0:00:44]} 29. Qxb4 {[%clk 0:00:43]}  Ba6 {[%clk 0:00:41]} 30. Qc3 {[%clk 0:00:42]}  Bb5 {[%clk 0:00:40]} 31. h3 {[%clk 0:00:42]}  Qe7 {[%clk 0:00:39]} 32. Nd2 {[%clk 0:00:38]}  Rd7 {[%clk 0:00:34]} 33. Ne4 {[%clk 0:00:38]}  Qd8 {[%clk 0:00:21]} 34. Nd6 {[%clk 0:00:37]}  Rxd6 {[%clk 0:00:18]} 35. exd6 {[%clk 0:00:38]}  Qxd6 {[%clk 0:00:19]} 36. Qe3 {[%clk 0:00:36]}  Rd8 {[%clk 0:00:18]} 37. Rd1 {[%clk 0:00:30]}  Qc7 {[%clk 0:00:13]} 38. b4 {[%clk 0:00:29]}  Qe7 {[%clk 0:00:12]} 39. Qe5 {[%clk 0:00:28]}  Qh4 {[%clk 0:00:10]} 40. Rc3 {[%clk 0:00:25]}  Qe7 {[%clk 0:00:08]} 41. Rg3 {[%clk 0:00:24]}  f6 {[%clk 0:00:06]} 42. Qf4 {[%clk 0:00:24]}  Qxb4 {[%clk 0:00:05]} 43. Qxf6 {[%clk 0:00:22]}  Rd7 {[%clk 0:00:05]} 44. Qxe6+ {[%clk 0:00:20]}  Rf7 {[%clk 0:00:06]} 45. Re1 {[%clk 0:00:19]}  c5 {[%clk 0:00:03]} 46. d5 {[%clk 0:00:17]}  Bd7 {[%clk 0:00:03]} 47. Qe5 {[%clk 0:00:15]}  Qxa5 {[%clk 0:00:00]} 48. Ree3 {[%clk 0:00:15]} 1-0

[Event "November 21 Late 2023"]
[Site "https://www.chess.com"]
[Date "2023.11.21"]
[Round "4"]
[White "Sivakumar, Shaashwath"]
[Black "Lymar, Vladislav"]
[Result "0-1"]
[Board "97"]
[TimeControl "180+1"]
[WhiteFideId "30912156"]
[BlackFideId "14162180"]
[WhiteElo "2137"]
[BlackElo "2234"]
[WhiteTeam "USA"]
[BlackTeam "UKR"]
[WhiteClock "0:00:06"]
[BlackClock "0:00:08"]

1. d4 {[%clk 0:03:00]}  d5 {[%clk 0:02:54]} 2. c4 {[%clk 0:02:57]}  e6 {[%clk 0:02:54]} 3. Nf3 {[%clk 0:02:57]}  c5 {[%clk 0:02:54]} 4. cxd5 {[%clk 0:02:56]}  exd5 {[%clk 0:02:55]} 5. g3 {[%clk 0:02:55]}  Nc6 {[%clk 0:02:56]} 6. Bg2 {[%clk 0:02:55]}  Nf6 {[%clk 0:02:56]} 7. O-O {[%clk 0:02:56]}  Be7 {[%clk 0:02:56]} 8. Nc3 {[%clk 0:02:56]}  O-O {[%clk 0:02:56]} 9. Be3 {[%clk 0:02:48]}  c4 {[%clk 0:02:56]} 10. Ne5 {[%clk 0:02:43]}  Qa5 {[%clk 0:02:46]} 11. Bg5 {[%clk 0:02:29]}  Be6 {[%clk 0:02:42]} 12. e3 {[%clk 0:02:04]}  Rfd8 {[%clk 0:02:28]} 13. Rc1 {[%clk 0:01:53]}  h6 {[%clk 0:02:23]} 14. Bxf6 {[%clk 0:01:37]}  Bxf6 {[%clk 0:02:23]} 15. f4 {[%clk 0:01:29]}  Bxe5 {[%clk 0:02:18]} 16. fxe5 {[%clk 0:01:29]}  b5 {[%clk 0:02:11]} 17. Qh5 {[%clk 0:01:25]}  b4 {[%clk 0:02:03]} 18. Ne2 {[%clk 0:01:22]}  Rd7 {[%clk 0:01:29]} 19. Nf4 {[%clk 0:01:16]}  Re7 {[%clk 0:00:55]} 20. Rxc4 {[%clk 0:00:47]}  dxc4 {[%clk 0:00:47]} 21. Bxc6 {[%clk 0:00:46]}  Rd8 {[%clk 0:00:45]} 22. Be4 {[%clk 0:00:39]}  c3 {[%clk 0:00:42]} 23. bxc3 {[%clk 0:00:36]}  bxc3 {[%clk 0:00:43]} 24. d5 {[%clk 0:00:35]}  Bxd5 {[%clk 0:00:41]} 25. Nxd5 {[%clk 0:00:30]}  Rxd5 {[%clk 0:00:42]} 26. Qf5 {[%clk 0:00:29]}  g6 {[%clk 0:00:34]} 27. Qf6 {[%clk 0:00:26]}  Rdxe5 {[%clk 0:00:24]} 28. Bxg6 {[%clk 0:00:22]}  Qc7 {[%clk 0:00:15]} 29. Bc2 {[%clk 0:00:16]}  Qc5 {[%clk 0:00:09]} 30. Rf4 {[%clk 0:00:11]}  Qxe3+ {[%clk 0:00:09]} 31. Kg2 {[%clk 0:00:10]}  Qe2+ {[%clk 0:00:08]} 32. Kh3 {[%clk 0:00:06]}  Rh5+ {[%clk 0:00:08]} 0-1

[Event "November 21 Late 2023"]
[Site "https://www.chess.com"]
[Date "2023.11.21"]
[Round "4"]
[White "Toropov, Pavel"]
[Black "Rios Escobar, Adan"]
[Result "1-0"]
[Board "98"]
[TimeControl "180+1"]
[WhiteFideId "24129178"]
[BlackFideId "3403645"]
[WhiteElo "2182"]
[BlackElo "2400"]
[WhiteTeam "RUS"]
[BlackTeam "CHI"]
[WhiteClock "0:00:16"]
[BlackClock "0:00:00"]

1. e4 {[%clk 0:01:52]}  c5 {[%clk 0:02:58]} 2. Nf3 {[%clk 0:01:51]}  d6 {[%clk 0:02:58]} 3. Bb5+ {[%clk 0:01:50]}  Nd7 {[%clk 0:02:57]} 4. d4 {[%clk 0:01:49]}  cxd4 {[%clk 0:02:57]} 5. Qxd4 {[%clk 0:01:50]}  a6 {[%clk 0:02:57]} 6. Bxd7+ {[%clk 0:01:50]}  Bxd7 {[%clk 0:02:57]} 7. Nc3 {[%clk 0:01:50]}  e5 {[%clk 0:02:56]} 8. Qd3 {[%clk 0:01:50]}  h6 {[%clk 0:02:48]} 9. Nd2 {[%clk 0:01:50]}  b5 {[%clk 0:02:42]} 10. Nf1 {[%clk 0:01:49]}  Nf6 {[%clk 0:02:22]} 11. Ne3 {[%clk 0:01:49]}  Be7 {[%clk 0:02:06]} 12. Ncd5 {[%clk 0:01:48]}  Nxd5 {[%clk 0:02:01]} 13. Nxd5 {[%clk 0:01:47]}  O-O {[%clk 0:02:01]} 14. Bd2 {[%clk 0:01:46]}  Bg5 {[%clk 0:01:58]} 15. Bb4 {[%clk 0:01:40]}  Be6 {[%clk 0:01:55]} 16. Nc3 {[%clk 0:01:21]}  Bc4 {[%clk 0:01:16]} 17. Qxd6 {[%clk 0:01:19]}  Qxd6 {[%clk 0:01:16]} 18. Bxd6 {[%clk 0:01:19]}  Rfd8 {[%clk 0:01:16]} 19. h4 {[%clk 0:01:11]}  Bf4 {[%clk 0:00:54]} 20. Rd1 {[%clk 0:01:07]}  h5 {[%clk 0:00:24]} 21. b3 {[%clk 0:00:57]}  Be6 {[%clk 0:00:17]} 22. Ne2 {[%clk 0:00:31]}  Bg4 {[%clk 0:00:12]} 23. f3 {[%clk 0:00:30]}  Be6 {[%clk 0:00:04]} 24. Nxf4 {[%clk 0:00:28]}  exf4 {[%clk 0:00:05]} 25. Bxf4 {[%clk 0:00:28]}  Rdc8 {[%clk 0:00:05]} 26. Rd2 {[%clk 0:00:26]}  b4 {[%clk 0:00:05]} 27. Kd1 {[%clk 0:00:25]}  Rc6 {[%clk 0:00:05]} 28. Kc1 {[%clk 0:00:25]}  Rac8 {[%clk 0:00:05]} 29. Rhd1 {[%clk 0:00:25]}  a5 {[%clk 0:00:05]} 30. Rd8+ {[%clk 0:00:25]}  Kh7 {[%clk 0:00:05]} 31. Rxc8 {[%clk 0:00:25]}  Bxc8 {[%clk 0:00:06]} 32. Kb2 {[%clk 0:00:24]}  a4 {[%clk 0:00:04]} 33. bxa4 {[%clk 0:00:24]}  Be6 {[%clk 0:00:05]} 34. Rd4 {[%clk 0:00:23]}  Bc4 {[%clk 0:00:03]} 35. a5 {[%clk 0:00:21]}  Bf1 {[%clk 0:00:03]} 36. g3 {[%clk 0:00:20]}  Be2 {[%clk 0:00:03]} 37. Rd6 {[%clk 0:00:18]}  Rc5 {[%clk 0:00:01]} 38. a6 {[%clk 0:00:18]}  Bxf3 {[%clk 0:00:01]} 39. Rd4 {[%clk 0:00:16]}  Ra5 {[%clk 0:00:01]} 40. Rxb4 {[%clk 0:00:16]}  Rxa6 {[%clk 0:00:02]} 41. a4 {[%clk 0:00:17]}  Kg6 {[%clk 0:00:01]} 42. Bc7 {[%clk 0:00:16]}  f6 {[%clk 0:00:00]} 43. e5 {[%clk 0:00:16]} 1-0

[Event "November 21 Late 2023"]
[Site "https://www.chess.com"]
[Date "2023.11.21"]
[Round "4"]
[White "Kujawski, Adam"]
[Black "Goltseva, Ekaterina"]
[Result "1-0"]
[Board "101"]
[TimeControl "180+1"]
[WhiteFideId "1100920"]
[BlackFideId "24173770"]
[WhiteElo "2054"]
[BlackElo "2139"]
[WhiteTeam "POL"]
[BlackTeam "RUS"]
[WhiteClock "0:00:31"]
[BlackClock "0:00:00"]

1. e4 {[%clk 0:03:00]}  c6 {[%clk 0:02:50]} 2. d4 {[%clk 0:02:59]}  a6 {[%clk 0:02:44]} 3. a4 {[%clk 0:02:46]}  d5 {[%clk 0:02:43]} 4. f3 {[%clk 0:02:46]}  g6 {[%clk 0:02:32]} 5. Nc3 {[%clk 0:02:44]}  Bg7 {[%clk 0:02:26]} 6. Be3 {[%clk 0:02:44]}  dxe4 {[%clk 0:02:23]} 7. fxe4 {[%clk 0:02:43]}  e5 {[%clk 0:02:22]} 8. dxe5 {[%clk 0:02:31]}  Qa5 {[%clk 0:02:14]} 9. Nf3 {[%clk 0:02:21]}  Ne7 {[%clk 0:02:00]} 10. Bc4 {[%clk 0:02:00]}  O-O {[%clk 0:01:53]} 11. O-O {[%clk 0:01:58]}  Bg4 {[%clk 0:01:48]} 12. h3 {[%clk 0:01:51]}  Be6 {[%clk 0:01:39]} 13. Bxe6 {[%clk 0:01:37]}  fxe6 {[%clk 0:01:39]} 14. Qd6 {[%clk 0:01:32]}  Nc8 {[%clk 0:00:50]} 15. Qxe6+ {[%clk 0:01:27]}  Kh8 {[%clk 0:00:50]} 16. Ng5 {[%clk 0:01:19]}  h6 {[%clk 0:00:21]} 17. Rxf8+ {[%clk 0:01:16]}  Bxf8 {[%clk 0:00:22]} 18. Qf7 {[%clk 0:00:51]}  hxg5 {[%clk 0:00:19]} 19. Qxf8+ {[%clk 0:00:48]}  Kh7 {[%clk 0:00:19]} 20. Rf1 {[%clk 0:00:32]}  Qxe5 {[%clk 0:00:00]} 21. Rf7+ {[%clk 0:00:31]} 1-0

[Event "November 21 Late 2023"]
[Site "https://www.chess.com"]
[Date "2023.11.21"]
[Round "4"]
[White "Kuegel, Tobias"]
[Black "Nita, Lucian"]
[Result "0-1"]
[Board "103"]
[TimeControl "180+1"]
[WhiteFideId "4636295"]
[BlackFideId "1206923"]
[WhiteElo "2213"]
[BlackElo "2066"]
[WhiteTeam "GER"]
[BlackTeam "ROU"]
[WhiteClock "0:00:00"]
[BlackClock "0:00:52"]

1. e4 {[%clk 0:03:00]}  d6 {[%clk 0:03:00]} 2. d4 {[%clk 0:03:00]}  Nf6 {[%clk 0:03:01]} 3. Nc3 {[%clk 0:02:59]}  e5 {[%clk 0:03:01]} 4. dxe5 {[%clk 0:02:59]}  dxe5 {[%clk 0:03:02]} 5. Qxd8+ {[%clk 0:02:59]}  Kxd8 {[%clk 0:03:03]} 6. Bc4 {[%clk 0:02:59]}  Ke8 {[%clk 0:03:02]} 7. f4 {[%clk 0:02:59]}  Bd6 {[%clk 0:02:57]} 8. Nf3 {[%clk 0:02:56]}  Nbd7 {[%clk 0:02:56]} 9. g3 {[%clk 0:02:45]}  c6 {[%clk 0:02:53]} 10. a4 {[%clk 0:02:45]}  h6 {[%clk 0:02:49]} 11. Be3 {[%clk 0:02:33]}  Ke7 {[%clk 0:02:48]} 12. O-O-O {[%clk 0:02:30]}  Bc7 {[%clk 0:02:44]} 13. f5 {[%clk 0:01:50]}  Ng4 {[%clk 0:02:41]} 14. Bg1 {[%clk 0:01:49]}  Bb6 {[%clk 0:02:39]} 15. h3 {[%clk 0:01:33]}  Nf2 {[%clk 0:02:31]} 16. Bxf2 {[%clk 0:01:31]}  Bxf2 {[%clk 0:02:30]} 17. g4 {[%clk 0:01:25]}  Be3+ {[%clk 0:02:29]} 18. Kb1 {[%clk 0:01:25]}  f6 {[%clk 0:02:28]} 19. Nh4 {[%clk 0:01:21]}  Nf8 {[%clk 0:02:27]} 20. Rd3 {[%clk 0:01:18]}  Bg5 {[%clk 0:02:23]} 21. Nf3 {[%clk 0:01:16]}  Nd7 {[%clk 0:02:17]} 22. Rdd1 {[%clk 0:00:41]}  a5 {[%clk 0:02:10]} 23. Ne1 {[%clk 0:00:35]}  Nc5 {[%clk 0:02:08]} 24. Nd3 {[%clk 0:00:35]}  Nxd3 {[%clk 0:02:06]} 25. Rxd3 {[%clk 0:00:34]}  Bd7 {[%clk 0:02:06]} 26. h4 {[%clk 0:00:28]}  Bf4 {[%clk 0:02:06]} 27. Ne2 {[%clk 0:00:28]}  h5 {[%clk 0:01:48]} 28. Nxf4 {[%clk 0:00:24]}  exf4 {[%clk 0:01:48]} 29. g5 {[%clk 0:00:20]}  c5 {[%clk 0:01:43]} 30. Rf3 {[%clk 0:00:16]}  Bxa4 {[%clk 0:01:42]} 31. Rxf4 {[%clk 0:00:16]}  Bc6 {[%clk 0:01:39]} 32. Rg1 {[%clk 0:00:16]}  b5 {[%clk 0:01:31]} 33. gxf6+ {[%clk 0:00:14]}  gxf6 {[%clk 0:01:31]} 34. Rg7+ {[%clk 0:00:13]}  Kd6 {[%clk 0:01:31]} 35. Be6 {[%clk 0:00:12]}  Ke5 {[%clk 0:01:30]} 36. Rf1 {[%clk 0:00:11]}  Bxe4 {[%clk 0:01:30]} 37. Re1 {[%clk 0:00:10]}  Rad8 {[%clk 0:01:25]} 38. Rg2 {[%clk 0:00:05]}  Rd4 {[%clk 0:01:19]} 39. Rge2 {[%clk 0:00:05]}  Rhd8 {[%clk 0:01:19]} 40. Kc1 {[%clk 0:00:04]}  Ra4 {[%clk 0:01:14]} 41. b3 {[%clk 0:00:03]}  Ra1+ {[%clk 0:01:13]} 42. Kb2 {[%clk 0:00:03]}  Rxe1 {[%clk 0:01:13]} 43. Rxe1 {[%clk 0:00:04]}  Rd2 {[%clk 0:01:12]} 44. Kb1 {[%clk 0:00:03]}  a4 {[%clk 0:01:06]} 45. bxa4 {[%clk 0:00:03]}  bxa4 {[%clk 0:01:06]} 46. Bf7 {[%clk 0:00:03]}  Kxf5 {[%clk 0:01:01]} 47. Bxh5 {[%clk 0:00:02]}  Bxc2+ {[%clk 0:00:54]} 48. Kc1 {[%clk 0:00:02]}  Rh2 {[%clk 0:00:53]} 49. Bf7 {[%clk 0:00:00]}  Be4 {[%clk 0:00:52]} 0-1

[Event "November 21 Late 2023"]
[Site "https://www.chess.com"]
[Date "2023.11.21"]
[Round "4"]
[White "PapaieDudu"]
[Black "Kochiev, Ivan"]
[Result "1-0"]
[Board "104"]
[TimeControl "180+1"]
[BlackFideId "2917890"]
[WhiteElo "2369"]
[BlackElo "2285"]
[BlackTeam "BUL"]
[WhiteClock "0:00:32"]
[BlackClock "0:00:01"]

1. d4 {[%clk 0:02:55]}  Nf6 {[%clk 0:02:59]} 2. c4 {[%clk 0:02:55]}  e6 {[%clk 0:03:00]} 3. Nc3 {[%clk 0:02:55]}  c5 {[%clk 0:03:00]} 4. Nf3 {[%clk 0:02:52]}  cxd4 {[%clk 0:02:56]} 5. Nxd4 {[%clk 0:02:52]}  Nc6 {[%clk 0:02:57]} 6. Bg5 {[%clk 0:02:52]}  Be7 {[%clk 0:02:55]} 7. e3 {[%clk 0:02:52]}  O-O {[%clk 0:02:54]} 8. Bd3 {[%clk 0:02:51]}  a6 {[%clk 0:02:55]} 9. O-O {[%clk 0:02:51]}  b6 {[%clk 0:02:53]} 10. Qe2 {[%clk 0:02:48]}  Bb7 {[%clk 0:02:52]} 11. Rfd1 {[%clk 0:02:48]}  Qc7 {[%clk 0:02:47]} 12. Bf4 {[%clk 0:02:45]}  e5 {[%clk 0:01:57]} 13. Bg3 {[%clk 0:02:44]}  Rac8 {[%clk 0:01:11]} 14. Rac1 {[%clk 0:02:44]}  Bc5 {[%clk 0:00:58]} 15. Nf5 {[%clk 0:02:01]}  Ne7 {[%clk 0:00:42]} 16. Nd5 {[%clk 0:01:40]}  Nfxd5 {[%clk 0:00:20]} 17. cxd5 {[%clk 0:01:41]}  Qd8 {[%clk 0:00:10]} 18. Bxe5 {[%clk 0:01:23]}  f6 {[%clk 0:00:06]} 19. Bc3 {[%clk 0:01:00]}  Nxf5 {[%clk 0:00:04]} 20. Bxf5 {[%clk 0:01:01]}  Be7 {[%clk 0:00:04]} 21. d6 {[%clk 0:00:57]}  Bxd6 {[%clk 0:00:03]} 22. Rxd6 {[%clk 0:00:58]}  g6 {[%clk 0:00:02]} 23. Rxd7 {[%clk 0:00:58]}  Qe8 {[%clk 0:00:01]} 24. Rxb7 {[%clk 0:00:40]}  gxf5 {[%clk 0:00:02]} 25. Qf3 {[%clk 0:00:33]}  Qe6 {[%clk 0:00:01]} 26. Qg3+ {[%clk 0:00:32]} 1-0

[Event "November 21 Late 2023"]
[Site "https://www.chess.com"]
[Date "2023.11.21"]
[Round "4"]
[White "arenal72"]
[Black "Martins, Vinicius Tine"]
[Result "0-1"]
[Board "105"]
[TimeControl "180+1"]
[BlackFideId "2112884"]
[WhiteElo "2507"]
[BlackElo "2373"]
[BlackTeam "BRA"]
[WhiteClock "0:00:10"]
[BlackClock "0:00:17"]

1. d4 {[%clk 0:03:00]}  d6 {[%clk 0:02:59]} 2. e4 {[%clk 0:02:58]}  Nf6 {[%clk 0:02:58]} 3. Nc3 {[%clk 0:02:58]}  g6 {[%clk 0:02:58]} 4. Bg5 {[%clk 0:02:57]}  Bg7 {[%clk 0:02:57]} 5. e5 {[%clk 0:02:58]}  Nfd7 {[%clk 0:02:47]} 6. exd6 {[%clk 0:02:57]}  cxd6 {[%clk 0:02:46]} 7. Qd2 {[%clk 0:02:58]}  O-O {[%clk 0:02:42]} 8. O-O-O {[%clk 0:02:53]}  Nc6 {[%clk 0:02:40]} 9. Nf3 {[%clk 0:02:50]}  Nf6 {[%clk 0:02:38]} 10. h4 {[%clk 0:02:49]}  Bg4 {[%clk 0:02:35]} 11. Be2 {[%clk 0:02:48]}  Rc8 {[%clk 0:02:32]} 12. Kb1 {[%clk 0:02:47]}  Na5 {[%clk 0:02:25]} 13. Bxf6 {[%clk 0:02:43]}  Bxf6 {[%clk 0:02:21]} 14. Ne4 {[%clk 0:02:40]}  Bg7 {[%clk 0:02:17]} 15. Nfg5 {[%clk 0:02:18]}  Bxe2 {[%clk 0:02:03]} 16. Qxe2 {[%clk 0:02:19]}  Nc4 {[%clk 0:01:56]} 17. c3 {[%clk 0:02:11]}  Qa5 {[%clk 0:01:43]} 18. h5 {[%clk 0:02:06]}  b5 {[%clk 0:01:32]} 19. Nxh7 {[%clk 0:02:01]}  b4 {[%clk 0:01:09]} 20. hxg6 {[%clk 0:01:55]}  bxc3 {[%clk 0:00:49]} 21. Nxf8 {[%clk 0:01:48]}  c2+ {[%clk 0:00:45]} 22. Ka1 {[%clk 0:01:34]}  cxd1=Q+ {[%clk 0:00:30]} 23. Rxd1 {[%clk 0:01:35]}  Kxf8 {[%clk 0:00:22]} 24. Rc1 {[%clk 0:01:24]}  Bxd4 {[%clk 0:00:16]} 25. Nc3 {[%clk 0:01:23]}  Bxc3 {[%clk 0:00:15]} 26. Rxc3 {[%clk 0:01:22]}  Qe5 {[%clk 0:00:14]} 27. Qd1 {[%clk 0:01:07]}  fxg6 {[%clk 0:00:14]} 28. f4 {[%clk 0:01:05]}  Qf6 {[%clk 0:00:13]} 29. Qg4 {[%clk 0:00:57]}  Rc5 {[%clk 0:00:12]} 30. Qh3 {[%clk 0:00:33]}  Nb6 {[%clk 0:00:11]} 31. Rxc5 {[%clk 0:00:31]}  dxc5 {[%clk 0:00:11]} 32. a3 {[%clk 0:00:28]}  c4 {[%clk 0:00:11]} 33. Qh6+ {[%clk 0:00:21]}  Kf7 {[%clk 0:00:11]} 34. g4 {[%clk 0:00:20]}  c3 {[%clk 0:00:10]} 35. Qh7+ {[%clk 0:00:17]}  Ke8 {[%clk 0:00:11]} 36. Qg8+ {[%clk 0:00:14]}  Kd7 {[%clk 0:00:12]} 37. Qb8 {[%clk 0:00:08]}  cxb2+ {[%clk 0:00:11]} 38. Ka2 {[%clk 0:00:09]}  Qe6+ {[%clk 0:00:11]} 39. Kxb2 {[%clk 0:00:08]}  Qd6 {[%clk 0:00:11]} 40. Qxa7+ {[%clk 0:00:07]}  Qc7 {[%clk 0:00:12]} 41. Qxc7+ {[%clk 0:00:03]}  Kxc7 {[%clk 0:00:12]} 42. Kc2 {[%clk 0:00:04]}  Kd6 {[%clk 0:00:12]} 43. Kd3 {[%clk 0:00:04]}  Kd5 {[%clk 0:00:13]} 44. g5 {[%clk 0:00:01]}  e6 {[%clk 0:00:13]} 45. a4 {[%clk 0:00:01]}  Nxa4 {[%clk 0:00:13]} 46. Ke3 {[%clk 0:00:02]}  Nc5 {[%clk 0:00:13]} 47. f5 {[%clk 0:00:03]}  exf5 {[%clk 0:00:13]} 48. Kf4 {[%clk 0:00:03]}  Kd4 {[%clk 0:00:13]} 49. Kf3 {[%clk 0:00:04]}  Ne6 {[%clk 0:00:13]} 50. Kg3 {[%clk 0:00:04]}  Nxg5 {[%clk 0:00:14]} 51. Kh4 {[%clk 0:00:05]}  Ne6 {[%clk 0:00:15]} 52. Kg3 {[%clk 0:00:06]}  Ke4 {[%clk 0:00:15]} 53. Kh4 {[%clk 0:00:06]}  f4 {[%clk 0:00:16]} 54. Kg4 {[%clk 0:00:06]}  f3 {[%clk 0:00:16]} 55. Kg3 {[%clk 0:00:07]}  Ke3 {[%clk 0:00:17]} 56. Kg4 {[%clk 0:00:08]}  f2 {[%clk 0:00:17]} 57. Kh4 {[%clk 0:00:09]}  f1=Q {[%clk 0:00:16]} 58. Kg4 {[%clk 0:00:10]}  Qg1+ {[%clk 0:00:17]} 59. Kh4 {[%clk 0:00:11]}  Kf3 {[%clk 0:00:17]} 60. Kh3 {[%clk 0:00:10]}  Qh1# {[%clk 0:00:17]} 0-1